Workbook

Sheet 績效報告
B2: 專案績效
B3: 報告
D5: 預算 | F5: 實獲值 | G5: 實際值 | I5: 成本 | K5: 排程時間表 | M5: 績效指標 | O5: 預測
B7: 序號 | C7: 貨品說明 | D7: 整體 BAC (NT$) | E7: PV (NT$) | F7: EV (NT$) | G7: AC (NT$) | H7: PEA (NT$) | I7: CV (NT$) | J7: CV (%) | K7: SV (NT$) | L7: SV (%) | M7: CPI | N7: SPI | O7: ETC | P7: EAC | Q7: VAC (%) | R7: VAC (NT$) | S7: 平均指數 | T7: 狀態
B8: A | C8: 方案 A | D8: =SUM(D9,D13) -> 14670 | E8: =SUM(E9,E13) -> 7620 | F8: =SUM(F9,F13) -> 6750 | G8: =SUM(G9,G13) -> 7980 | I8: =tblPerformance[[#This Row],[EV (NT$)]]-tblPerformance[[#This Row],[AC (NT$)]] -> (1230) | J8: =IFERROR(tblPerformance[[#This Row],[CV (NT$)]]/tblPerformance[[#This Row],[PV (NT$)]],0) -> -16% | K8: =IFERROR(tblPerformance[[#This Row],[EV (NT$)]]-tblPerformance[[#This Row],[PV (NT$)]],0) -> (870) | L8: =IFERROR(tblPerformance[[#This Row],[SV (NT$)]]/tblPerformance[[#This Row],[PV (NT$)]],0) -> -11% | M8: =IFERROR(tblPerformance[[#This Row],[EV (NT$)]]/tblPerformance[[#This Row],[AC (NT$)]],0) -> 0.85 | N8: =IFERROR(tblPerformance[[#This Row],[EV (NT$)]]/tblPerformance[[#This Row],[PV (NT$)]],0) -> 0.89 | O8: =IFERROR(tblPerformance[[#This Row],[EAC]]-tblPerformance[[#This Row],[AC (NT$)]],0) -> 9363 | P8: =IFERROR(tblPerformance[[#This Row],[整體 BAC (NT$)]]/tblPerformance[[#This Row],[CPI]],0) -> 17343 | Q8: =IFERROR(tblPerformance[[#This Row],[VAC (NT$)]]/tblPerformance[[#This Row],[整體 BAC (NT$)]],0) -> -18% | R8: =IFERROR(tblPerformance[[#This Row],[整體 BAC (NT$)]]-tblPerformance[[#This Row],[EAC]],0) -> (2673) | S8: =IFERROR((tblPerformance[[#This Row],[SPI]]+tblPerformance[[#This Row],[CPI]])/2,0) -> 0.87 | T8: =LOOKUP(tblPerformance[[#This Row],[平均指數]],tblStatus[下限值],tblStatus[狀態]) -> ORANGE
B9: A.1 | C9: 專案 1 | D9: =SUM(D10:D12) -> 5580 | E9: =SUM(E10:E12) -> 2790 | F9: =SUM(F10:F12) -> 2700 | G9: =SUM(G10:G12) -> 3000 | I9: =tblPerformance[[#This Row],[EV (NT$)]]-tblPerformance[[#This Row],[AC (NT$)]] -> (300) | J9: =IFERROR(tblPerformance[[#This Row],[CV (NT$)]]/tblPerformance[[#This Row],[PV (NT$)]],0) -> -11% | K9: =IFERROR(tblPerformance[[#This Row],[EV (NT$)]]-tblPerformance[[#This Row],[PV (NT$)]],0) -> (90) | L9: =IFERROR(tblPerformance[[#This Row],[SV (NT$)]]/tblPerformance[[#This Row],[PV (NT$)]],0) -> -3% | M9: =IFERROR(tblPerformance[[#This Row],[EV (NT$)]]/tblPerformance[[#This Row],[AC (NT$)]],0) -> 0.90 | N9: =IFERROR(tblPerformance[[#This Row],[EV (NT$)]]/tblPerformance[[#This Row],[PV (NT$)]],0) -> 0.97 | O9: =IFERROR(tblPerformance[[#This Row],[EAC]]-tblPerformance[[#This Row],[AC (NT$)]],0) -> 3200 | P9: =IFERROR(tblPerformance[[#This Row],[整體 BAC (NT$)]]/tblPerformance[[#This Row],[CPI]],0) -> 6200 | Q9: =IFERROR(tblPerformance[[#This Row],[VAC (NT$)]]/tblPerformance[[#This Row],[整體 BAC (NT$)]],0) -> -11% | R9: =IFERROR(tblPerformance[[#This Row],[整體 BAC (NT$)]]-tblPerformance[[#This Row],[EAC]],0) -> (620) | S9: =IFERROR((tblPerformance[[#This Row],[SPI]]+tblPerformance[[#This Row],[CPI]])/2,0) -> 0.93 | T9: =LOOKUP(tblPerformance[[#This Row],[平均指數]],tblStatus[下限值],tblStatus[狀態]) -> ORANGE
B10: A.1.1 | C10: 交付項目 1 | D10: 3000 | E10: 1650 | F10: 1500 | G10: 1800 | I10: =tblPerformance[[#This Row],[EV (NT$)]]-tblPerformance[[#This Row],[AC (NT$)]] -> (300) | J10: =IFERROR(tblPerformance[[#This Row],[CV (NT$)]]/tblPerformance[[#This Row],[PV (NT$)]],0) -> -18% | K10: =IFERROR(tblPerformance[[#This Row],[EV (NT$)]]-tblPerformance[[#This Row],[PV (NT$)]],0) -> (150) | L10: =IFERROR(tblPerformance[[#This Row],[SV (NT$)]]/tblPerformance[[#This Row],[PV (NT$)]],0) -> -9% | M10: =IFERROR(tblPerformance[[#This Row],[EV (NT$)]]/tblPerformance[[#This Row],[AC (NT$)]],0) -> 0.83 | N10: =IFERROR(tblPerformance[[#This Row],[EV (NT$)]]/tblPerformance[[#This Row],[PV (NT$)]],0) -> 0.91 | O10: =IFERROR(tblPerformance[[#This Row],[EAC]]-tblPerformance[[#This Row],[AC (NT$)]],0) -> 1800 | P10: =IFERROR(tblPerformance[[#This Row],[整體 BAC (NT$)]]/tblPerformance[[#This Row],[CPI]],0) -> 3600 | Q10: =IFERROR(tblPerformance[[#This Row],[VAC (NT$)]]/tblPerformance[[#This Row],[整體 BAC (NT$)]],0) -> -20% | R10: =IFERROR(tblPerformance[[#This Row],[整體 BAC (NT$)]]-tblPerformance[[#This Row],[EAC]],0) -> (600) | S10: =IFERROR((tblPerformance[[#This Row],[SPI]]+tblPerformance[[#This Row],[CPI]])/2,0) -> 0.87 | T10: =LOOKUP(tblPerformance[[#This Row],[平均指數]],tblStatus[下限值],tblStatus[狀態]) -> ORANGE
B11: A.1.2 | C11: 交付項目 2 | D11: 840 | E11: 390 | F11: 420 | G11: 540 | I11: =tblPerformance[[#This Row],[EV (NT$)]]-tblPerformance[[#This Row],[AC (NT$)]] -> (120) | J11: =IFERROR(tblPerformance[[#This Row],[CV (NT$)]]/tblPerformance[[#This Row],[PV (NT$)]],0) -> -31% | K11: =IFERROR(tblPerformance[[#This Row],[EV (NT$)]]-tblPerformance[[#This Row],[PV (NT$)]],0) -> 30 | L11: =IFERROR(tblPerformance[[#This Row],[SV (NT$)]]/tblPerformance[[#This Row],[PV (NT$)]],0) -> 8% | M11: =IFERROR(tblPerformance[[#This Row],[EV (NT$)]]/tblPerformance[[#This Row],[AC (NT$)]],0) -> 0.78 | N11: =IFERROR(tblPerformance[[#This Row],[EV (NT$)]]/tblPerformance[[#This Row],[PV (NT$)]],0) -> 1.08 | O11: =IFERROR(tblPerformance[[#This Row],[EAC]]-tblPerformance[[#This Row],[AC (NT$)]],0) -> 540 | P11: =IFERROR(tblPerformance[[#This Row],[整體 BAC (NT$)]]/tblPerformance[[#This Row],[CPI]],0) -> 1080 | Q11: =IFERROR(tblPerformance[[#This Row],[VAC (NT$)]]/tblPerformance[[#This Row],[整體 BAC (NT$)]],0) -> -29% | R11: =IFERROR(tblPerformance[[#This Row],[整體 BAC (NT$)]]-tblPerformance[[#This Row],[EAC]],0) -> (240) | S11: =IFERROR((tblPerformance[[#This Row],[SPI]]+tblPerformance[[#This Row],[CPI]])/2,0) -> 0.93 | T11: =LOOKUP(tblPerformance[[#This Row],[平均指數]],tblStatus[下限值],tblStatus[狀態]) -> ORANGE
B12: A.1.3 | C12: 交付項目 3 | D12: 1740 | E12: 750 | F12: 780 | G12: 660 | I12: =tblPerformance[[#This Row],[EV (NT$)]]-tblPerformance[[#This Row],[AC (NT$)]] -> 120 | J12: =IFERROR(tblPerformance[[#This Row],[CV (NT$)]]/tblPerformance[[#This Row],[PV (NT$)]],0) -> 16% | K12: =IFERROR(tblPerformance[[#This Row],[EV (NT$)]]-tblPerformance[[#This Row],[PV (NT$)]],0) -> 30 | L12: =IFERROR(tblPerformance[[#This Row],[SV (NT$)]]/tblPerformance[[#This Row],[PV (NT$)]],0) -> 4% | M12: =IFERROR(tblPerformance[[#This Row],[EV (NT$)]]/tblPerformance[[#This Row],[AC (NT$)]],0) -> 1.18 | N12: =IFERROR(tblPerformance[[#This Row],[EV (NT$)]]/tblPerformance[[#This Row],[PV (NT$)]],0) -> 1.04 | O12: =IFERROR(tblPerformance[[#This Row],[EAC]]-tblPerformance[[#This Row],[AC (NT$)]],0) -> 812 | P12: =IFERROR(tblPerformance[[#This Row],[整體 BAC (NT$)]]/tblPerformance[[#This Row],[CPI]],0) -> 1472 | Q12: =IFERROR(tblPerformance[[#This Row],[VAC (NT$)]]/tblPerformance[[#This Row],[整體 BAC (NT$)]],0) -> 15% | R12: =IFERROR(tblPerformance[[#This Row],[整體 BAC (NT$)]]-tblPerformance[[#This Row],[EAC]],0) -> 268 | S12: =IFERROR((tblPerformance[[#This Row],[SPI]]+tblPerformance[[#This Row],[CPI]])/2,0) -> 1.11 | T12: =LOOKUP(tblPerformance[[#This Row],[平均指數]],tblStatus[下限值],tblStatus[狀態]) -> GREEN
B13: A.2 | C13: 專案 2 | D13: =SUM(D14:D16) -> 9090 | E13: =SUM(E14:E16) -> 4830 | F13: =SUM(F14:F16) -> 4050 | G13: =SUM(G14:G16) -> 4980 | I13: =tblPerformance[[#This Row],[EV (NT$)]]-tblPerformance[[#This Row],[AC (NT$)]] -> (930) | J13: =IFERROR(tblPerformance[[#This Row],[CV (NT$)]]/tblPerformance[[#This Row],[PV (NT$)]],0) -> -19% | K13: =IFERROR(tblPerformance[[#This Row],[EV (NT$)]]-tblPerformance[[#This Row],[PV (NT$)]],0) -> (780) | L13: =IFERROR(tblPerformance[[#This Row],[SV (NT$)]]/tblPerformance[[#This Row],[PV (NT$)]],0) -> -16% | M13: =IFERROR(tblPerformance[[#This Row],[EV (NT$)]]/tblPerformance[[#This Row],[AC (NT$)]],0) -> 0.81 | N13: =IFERROR(tblPerformance[[#This Row],[EV (NT$)]]/tblPerformance[[#This Row],[PV (NT$)]],0) -> 0.84 | O13: =IFERROR(tblPerformance[[#This Row],[EAC]]-tblPerformance[[#This Row],[AC (NT$)]],0) -> 6197 | P13: =IFERROR(tblPerformance[[#This Row],[整體 BAC (NT$)]]/tblPerformance[[#This Row],[CPI]],0) -> 11177 | Q13: =IFERROR(tblPerformance[[#This Row],[VAC (NT$)]]/tblPerformance[[#This Row],[整體 BAC (NT$)]],0) -> -23% | R13: =IFERROR(tblPerformance[[#This Row],[整體 BAC (NT$)]]-tblPerformance[[#This Row],[EAC]],0) -> (2087) | S13: =IFERROR((tblPerformance[[#This Row],[SPI]]+tblPerformance[[#This Row],[CPI]])/2,0) -> 0.83 | T13: =LOOKUP(tblPerformance[[#This Row],[平均指數]],tblStatus[下限值],tblStatus[狀態]) -> RED
B14: A.2.1 | C14: 交付項目 1 | D14: 5400 | E14: 2760 | F14: 2400 | G14: 3000 | I14: =tblPerformance[[#This Row],[EV (NT$)]]-tblPerformance[[#This Row],[AC (NT$)]] -> (600) | J14: =IFERROR(tblPerformance[[#This Row],[CV (NT$)]]/tblPerformance[[#This Row],[PV (NT$)]],0) -> -22% | K14: =IFERROR(tblPerformance[[#This Row],[EV (NT$)]]-tblPerformance[[#This Row],[PV (NT$)]],0) -> (360) | L14: =IFERROR(tblPerformance[[#This Row],[SV (NT$)]]/tblPerformance[[#This Row],[PV (NT$)]],0) -> -13% | M14: =IFERROR(tblPerformance[[#This Row],[EV (NT$)]]/tblPerformance[[#This Row],[AC (NT$)]],0) -> 0.80 | N14: =IFERROR(tblPerformance[[#This Row],[EV (NT$)]]/tblPerformance[[#This Row],[PV (NT$)]],0) -> 0.87 | O14: =IFERROR(tblPerformance[[#This Row],[EAC]]-tblPerformance[[#This Row],[AC (NT$)]],0) -> 3750 | P14: =IFERROR(tblPerformance[[#This Row],[整體 BAC (NT$)]]/tblPerformance[[#This Row],[CPI]],0) -> 6750 | Q14: =IFERROR(tblPerformance[[#This Row],[VAC (NT$)]]/tblPerformance[[#This Row],[整體 BAC (NT$)]],0) -> -25% | R14: =IFERROR(tblPerformance[[#This Row],[整體 BAC (NT$)]]-tblPerformance[[#This Row],[EAC]],0) -> (1350) | S14: =IFERROR((tblPerformance[[#This Row],[SPI]]+tblPerformance[[#This Row],[CPI]])/2,0) -> 0.83 | T14: =LOOKUP(tblPerformance[[#This Row],[平均指數]],tblStatus[下限值],tblStatus[狀態]) -> RED
B15: A.2.2 | C15: 交付項目 2 | D15: 1350 | E15: 1050 | F15: 600 | G15: 900 | I15: =tblPerformance[[#This Row],[EV (NT$)]]-tblPerformance[[#This Row],[AC (NT$)]] -> (300) | J15: =IFERROR(tblPerformance[[#This Row],[CV (NT$)]]/tblPerformance[[#This Row],[PV (NT$)]],0) -> -29% | K15: =IFERROR(tblPerformance[[#This Row],[EV (NT$)]]-tblPerformance[[#This Row],[PV (NT$)]],0) -> (450) | L15: =IFERROR(tblPerformance[[#This Row],[SV (NT$)]]/tblPerformance[[#This Row],[PV (NT$)]],0) -> -43% | M15: =IFERROR(tblPerformance[[#This Row],[EV (NT$)]]/tblPerformance[[#This Row],[AC (NT$)]],0) -> 0.67 | N15: =IFERROR(tblPerformance[[#This Row],[EV (NT$)]]/tblPerformance[[#This Row],[PV (NT$)]],0) -> 0.57 | O15: =IFERROR(tblPerformance[[#This Row],[EAC]]-tblPerformance[[#This Row],[AC (NT$)]],0) -> 1125 | P15: =IFERROR(tblPerformance[[#This Row],[整體 BAC (NT$)]]/tblPerformance[[#This Row],[CPI]],0) -> 2025 | Q15: =IFERROR(tblPerformance[[#This Row],[VAC (NT$)]]/tblPerformance[[#This Row],[整體 BAC (NT$)]],0) -> -50% | R15: =IFERROR(tblPerformance[[#This Row],[整體 BAC (NT$)]]-tblPerformance[[#This Row],[EAC]],0) -> (675) | S15: =IFERROR((tblPerformance[[#This Row],[SPI]]+tblPerformance[[#This Row],[CPI]])/2,0) -> 0.62 | T15: =LOOKUP(tblPerformance[[#This Row],[平均指數]],tblStatus[下限值],tblStatus[狀態]) -> BLACK
B16: A.2.3 | C16: 交付項目 3 | D16: 2340 | E16: 1020 | F16: 1050 | G16: 1080 | I16: =tblPerformance[[#This Row],[EV (NT$)]]-tblPerformance[[#This Row],[AC (NT$)]] -> (30) | J16: =IFERROR(tblPerformance[[#This Row],[CV (NT$)]]/tblPerformance[[#This Row],[PV (NT$)]],0) -> -3% | K16: =IFERROR(tblPerformance[[#This Row],[EV (NT$)]]-tblPerformance[[#This Row],[PV (NT$)]],0) -> 30 | L16: =IFERROR(tblPerformance[[#This Row],[SV (NT$)]]/tblPerformance[[#This Row],[PV (NT$)]],0) -> 3% | M16: =IFERROR(tblPerformance[[#This Row],[EV (NT$)]]/tblPerformance[[#This Row],[AC (NT$)]],0) -> 0.97 | N16: =IFERROR(tblPerformance[[#This Row],[EV (NT$)]]/tblPerformance[[#This Row],[PV (NT$)]],0) -> 1.03 | O16: =IFERROR(tblPerformance[[#This Row],[EAC]]-tblPerformance[[#This Row],[AC (NT$)]],0) -> 1327 | P16: =IFERROR(tblPerformance[[#This Row],[整體 BAC (NT$)]]/tblPerformance[[#This Row],[CPI]],0) -> 2407 | Q16: =IFERROR(tblPerformance[[#This Row],[VAC (NT$)]]/tblPerformance[[#This Row],[整體 BAC (NT$)]],0) -> -3% | R16: =IFERROR(tblPerformance[[#This Row],[整體 BAC (NT$)]]-tblPerformance[[#This Row],[EAC]],0) -> (67) | S16: =IFERROR((tblPerformance[[#This Row],[SPI]]+tblPerformance[[#This Row],[CPI]])/2,0) -> 1.00 | T16: =LOOKUP(tblPerformance[[#This Row],[平均指數]],tblStatus[下限值],tblStatus[狀態]) -> GREEN
B17: B | C17: 方案 B | D17: =SUM(D18,D22) -> 21150 | E17: =SUM(E18,E22) -> 10890 | F17: =SUM(F18,F22) -> 12150 | G17: =SUM(G18,G22) -> 12900 | I17: =tblPerformance[[#This Row],[EV (NT$)]]-tblPerformance[[#This Row],[AC (NT$)]] -> (750) | J17: =IFERROR(tblPerformance[[#This Row],[CV (NT$)]]/tblPerformance[[#This Row],[PV (NT$)]],0) -> -7% | K17: =IFERROR(tblPerformance[[#This Row],[EV (NT$)]]-tblPerformance[[#This Row],[PV (NT$)]],0) -> 1260 | L17: =IFERROR(tblPerformance[[#This Row],[SV (NT$)]]/tblPerformance[[#This Row],[PV (NT$)]],0) -> 12% | M17: =IFERROR(tblPerformance[[#This Row],[EV (NT$)]]/tblPerformance[[#This Row],[AC (NT$)]],0) -> 0.94 | N17: =IFERROR(tblPerformance[[#This Row],[EV (NT$)]]/tblPerformance[[#This Row],[PV (NT$)]],0) -> 1.12 | O17: =IFERROR(tblPerformance[[#This Row],[EAC]]-tblPerformance[[#This Row],[AC (NT$)]],0) -> 9556 | P17: =IFERROR(tblPerformance[[#This Row],[整體 BAC (NT$)]]/tblPerformance[[#This Row],[CPI]],0) -> 22456 | Q17: =IFERROR(tblPerformance[[#This Row],[VAC (NT$)]]/tblPerformance[[#This Row],[整體 BAC (NT$)]],0) -> -6% | R17: =IFERROR(tblPerformance[[#This Row],[整體 BAC (NT$)]]-tblPerformance[[#This Row],[EAC]],0) -> (1306) | S17: =IFERROR((tblPerformance[[#This Row],[SPI]]+tblPerformance[[#This Row],[CPI]])/2,0) -> 1.03 | T17: =LOOKUP(tblPerformance[[#This Row],[平均指數]],tblStatus[下限值],tblStatus[狀態]) -> GREEN
B18: B.1 | C18: 專案 1 | D18: =SUM(D19:D21) -> 11250 | E18: =SUM(E19:E21) -> 4440 | F18: =SUM(F19:F21) -> 6300 | G18: =SUM(G19:G21) -> 6750 | I18: =tblPerformance[[#This Row],[EV (NT$)]]-tblPerformance[[#This Row],[AC (NT$)]] -> (450) | J18: =IFERROR(tblPerformance[[#This Row],[CV (NT$)]]/tblPerformance[[#This Row],[PV (NT$)]],0) -> -10% | K18: =IFERROR(tblPerformance[[#This Row],[EV (NT$)]]-tblPerformance[[#This Row],[PV (NT$)]],0) -> 1860 | L18: =IFERROR(tblPerformance[[#This Row],[SV (NT$)]]/tblPerformance[[#This Row],[PV (NT$)]],0) -> 42% | M18: =IFERROR(tblPerformance[[#This Row],[EV (NT$)]]/tblPerformance[[#This Row],[AC (NT$)]],0) -> 0.93 | N18: =IFERROR(tblPerformance[[#This Row],[EV (NT$)]]/tblPerformance[[#This Row],[PV (NT$)]],0) -> 1.42 | O18: =IFERROR(tblPerformance[[#This Row],[EAC]]-tblPerformance[[#This Row],[AC (NT$)]],0) -> 5304 | P18: =IFERROR(tblPerformance[[#This Row],[整體 BAC (NT$)]]/tblPerformance[[#This Row],[CPI]],0) -> 12054 | Q18: =IFERROR(tblPerformance[[#This Row],[VAC (NT$)]]/tblPerformance[[#This Row],[整體 BAC (NT$)]],0) -> -7% | R18: =IFERROR(tblPerformance[[#This Row],[整體 BAC (NT$)]]-tblPerformance[[#This Row],[EAC]],0) -> (804) | S18: =IFERROR((tblPerformance[[#This Row],[SPI]]+tblPerformance[[#This Row],[CPI]])/2,0) -> 1.18 | T18: =LOOKUP(tblPerformance[[#This Row],[平均指數]],tblStatus[下限值],tblStatus[狀態]) -> GREEN
B19: B.1.1 | C19: 交付項目 1 | D19: 7500 | E19: 1650 | F19: 3750 | G19: 4500 | I19: =tblPerformance[[#This Row],[EV (NT$)]]-tblPerformance[[#This Row],[AC (NT$)]] -> (750) | J19: =IFERROR(tblPerformance[[#This Row],[CV (NT$)]]/tblPerformance[[#This Row],[PV (NT$)]],0) -> -45% | K19: =IFERROR(tblPerformance[[#This Row],[EV (NT$)]]-tblPerformance[[#This Row],[PV (NT$)]],0) -> 2100 | L19: =IFERROR(tblPerformance[[#This Row],[SV (NT$)]]/tblPerformance[[#This Row],[PV (NT$)]],0) -> 127% | M19: =IFERROR(tblPerformance[[#This Row],[EV (NT$)]]/tblPerformance[[#This Row],[AC (NT$)]],0) -> 0.83 | N19: =IFERROR(tblPerformance[[#This Row],[EV (NT$)]]/tblPerformance[[#This Row],[PV (NT$)]],0) -> 2.27 | O19: =IFERROR(tblPerformance[[#This Row],[EAC]]-tblPerformance[[#This Row],[AC (NT$)]],0) -> 4500 | P19: =IFERROR(tblPerformance[[#This Row],[整體 BAC (NT$)]]/tblPerformance[[#This Row],[CPI]],0) -> 9000 | Q19: =IFERROR(tblPerformance[[#This Row],[VAC (NT$)]]/tblPerformance[[#This Row],[整體 BAC (NT$)]],0) -> -20% | R19: =IFERROR(tblPerformance[[#This Row],[整體 BAC (NT$)]]-tblPerformance[[#This Row],[EAC]],0) -> (1500) | S19: =IFERROR((tblPerformance[[#This Row],[SPI]]+tblPerformance[[#This Row],[CPI]])/2,0) -> 1.55 | T19: =LOOKUP(tblPerformance[[#This Row],[平均指數]],tblStatus[下限值],tblStatus[狀態]) -> GREEN
B20: B.1.2 | C20: 交付項目 2 | D20: 3000 | E20: 2460 | F20: 2100 | G20: 1950 | I20: =tblPerformance[[#This Row],[EV (NT$)]]-tblPerformance[[#This Row],[AC (NT$)]] -> 150 | J20: =IFERROR(tblPerformance[[#This Row],[CV (NT$)]]/tblPerformance[[#This Row],[PV (NT$)]],0) -> 6% | K20: =IFERROR(tblPerformance[[#This Row],[EV (NT$)]]-tblPerformance[[#This Row],[PV (NT$)]],0) -> (360) | L20: =IFERROR(tblPerformance[[#This Row],[SV (NT$)]]/tblPerformance[[#This Row],[PV (NT$)]],0) -> -15% | M20: =IFERROR(tblPerformance[[#This Row],[EV (NT$)]]/tblPerformance[[#This Row],[AC (NT$)]],0) -> 1.08 | N20: =IFERROR(tblPerformance[[#This Row],[EV (NT$)]]/tblPerformance[[#This Row],[PV (NT$)]],0) -> 0.85 | O20: =IFERROR(tblPerformance[[#This Row],[EAC]]-tblPerformance[[#This Row],[AC (NT$)]],0) -> 836 | P20: =IFERROR(tblPerformance[[#This Row],[整體 BAC (NT$)]]/tblPerformance[[#This Row],[CPI]],0) -> 2786 | Q20: =IFERROR(tblPerformance[[#This Row],[VAC (NT$)]]/tblPerformance[[#This Row],[整體 BAC (NT$)]],0) -> 7% | R20: =IFERROR(tblPerformance[[#This Row],[整體 BAC (NT$)]]-tblPerformance[[#This Row],[EAC]],0) -> 214 | S20: =IFERROR((tblPerformance[[#This Row],[SPI]]+tblPerformance[[#This Row],[CPI]])/2,0) -> 0.97 | T20: =LOOKUP(tblPerformance[[#This Row],[平均指數]],tblStatus[下限值],tblStatus[狀態]) -> ORANGE
B21: B.1.3 | C21: 交付項目 3 | D21: 750 | E21: 330 | F21: 450 | G21: 300 | I21: =tblPerformance[[#This Row],[EV (NT$)]]-tblPerformance[[#This Row],[AC (NT$)]] -> 150 | J21: =IFERROR(tblPerformance[[#This Row],[CV (NT$)]]/tblPerformance[[#This Row],[PV (NT$)]],0) -> 45% | K21: =IFERROR(tblPerformance[[#This Row],[EV (NT$)]]-tblPerformance[[#This Row],[PV (NT$)]],0) -> 120 | L21: =IFERROR(tblPerformance[[#This Row],[SV (NT$)]]/tblPerformance[[#This Row],[PV (NT$)]],0) -> 36% | M21: =IFERROR(tblPerformance[[#This Row],[EV (NT$)]]/tblPerformance[[#This Row],[AC (NT$)]],0) -> 1.50 | N21: =IFERROR(tblPerformance[[#This Row],[EV (NT$)]]/tblPerformance[[#This Row],[PV (NT$)]],0) -> 1.36 | O21: =IFERROR(tblPerformance[[#This Row],[EAC]]-tblPerformance[[#This Row],[AC (NT$)]],0) -> 200 | P21: =IFERROR(tblPerformance[[#This Row],[整體 BAC (NT$)]]/tblPerformance[[#This Row],[CPI]],0) -> 500 | Q21: =IFERROR(tblPerformance[[#This Row],[VAC (NT$)]]/tblPerformance[[#This Row],[整體 BAC (NT$)]],0) -> 33% | R21: =IFERROR(tblPerformance[[#This Row],[整體 BAC (NT$)]]-tblPerformance[[#This Row],[EAC]],0) -> 250 | S21: =IFERROR((tblPerformance[[#This Row],[SPI]]+tblPerformance[[#This Row],[CPI]])/2,0) -> 1.43 | T21: =LOOKUP(tblPerformance[[#This Row],[平均指數]],tblStatus[下限值],tblStatus[狀態]) -> GREEN
B22: B.2 | C22: 專案 2 | D22: =SUM(D23:D25) -> 9900 | E22: =SUM(E23:E25) -> 6450 | F22: =SUM(F23:F25) -> 5850 | G22: =SUM(G23:G25) -> 6150 | I22: =tblPerformance[[#This Row],[EV (NT$)]]-tblPerformance[[#This Row],[AC (NT$)]] -> (300) | J22: =IFERROR(tblPerformance[[#This Row],[CV (NT$)]]/tblPerformance[[#This Row],[PV (NT$)]],0) -> -5% | K22: =IFERROR(tblPerformance[[#This Row],[EV (NT$)]]-tblPerformance[[#This Row],[PV (NT$)]],0) -> (600) | L22: =IFERROR(tblPerformance[[#This Row],[SV (NT$)]]/tblPerformance[[#This Row],[PV (NT$)]],0) -> -9% | M22: =IFERROR(tblPerformance[[#This Row],[EV (NT$)]]/tblPerformance[[#This Row],[AC (NT$)]],0) -> 0.95 | N22: =IFERROR(tblPerformance[[#This Row],[EV (NT$)]]/tblPerformance[[#This Row],[PV (NT$)]],0) -> 0.91 | O22: =IFERROR(tblPerformance[[#This Row],[EAC]]-tblPerformance[[#This Row],[AC (NT$)]],0) -> 4258 | P22: =IFERROR(tblPerformance[[#This Row],[整體 BAC (NT$)]]/tblPerformance[[#This Row],[CPI]],0) -> 10408 | Q22: =IFERROR(tblPerformance[[#This Row],[VAC (NT$)]]/tblPerformance[[#This Row],[整體 BAC (NT$)]],0) -> -5% | R22: =IFERROR(tblPerformance[[#This Row],[整體 BAC (NT$)]]-tblPerformance[[#This Row],[EAC]],0) -> (508) | S22: =IFERROR((tblPerformance[[#This Row],[SPI]]+tblPerformance[[#This Row],[CPI]])/2,0) -> 0.93 | T22: =LOOKUP(tblPerformance[[#This Row],[平均指數]],tblStatus[下限值],tblStatus[狀態]) -> ORANGE
B23: B.2.1 | C23: 交付項目 1 | D23: 2700 | E23: 1650 | F23: 1800 | G23: 1500 | I23: =tblPerformance[[#This Row],[EV (NT$)]]-tblPerformance[[#This Row],[AC (NT$)]] -> 300 | J23: =IFERROR(tblPerformance[[#This Row],[CV (NT$)]]/tblPerformance[[#This Row],[PV (NT$)]],0) -> 18% | K23: =IFERROR(tblPerformance[[#This Row],[EV (NT$)]]-tblPerformance[[#This Row],[PV (NT$)]],0) -> 150 | L23: =IFERROR(tblPerformance[[#This Row],[SV (NT$)]]/tblPerformance[[#This Row],[PV (NT$)]],0) -> 9% | M23: =IFERROR(tblPerformance[[#This Row],[EV (NT$)]]/tblPerformance[[#This Row],[AC (NT$)]],0) -> 1.20 | N23: =IFERROR(tblPerformance[[#This Row],[EV (NT$)]]/tblPerformance[[#This Row],[PV (NT$)]],0) -> 1.09 | O23: =IFERROR(tblPerformance[[#This Row],[EAC]]-tblPerformance[[#This Row],[AC (NT$)]],0) -> 750 | P23: =IFERROR(tblPerformance[[#This Row],[整體 BAC (NT$)]]/tblPerformance[[#This Row],[CPI]],0) -> 2250 | Q23: =IFERROR(tblPerformance[[#This Row],[VAC (NT$)]]/tblPerformance[[#This Row],[整體 BAC (NT$)]],0) -> 17% | R23: =IFERROR(tblPerformance[[#This Row],[整體 BAC (NT$)]]-tblPerformance[[#This Row],[EAC]],0) -> 450 | S23: =IFERROR((tblPerformance[[#This Row],[SPI]]+tblPerformance[[#This Row],[CPI]])/2,0) -> 1.15 | T23: =LOOKUP(tblPerformance[[#This Row],[平均指數]],tblStatus[下限值],tblStatus[狀態]) -> GREEN
B24: B.2.2 | C24: 交付項目 2 | D24: 2700 | E24: 1800 | F24: 1500 | G24: 1350 | I24: =tblPerformance[[#This Row],[EV (NT$)]]-tblPerformance[[#This Row],[AC (NT$)]] -> 150 | J24: =IFERROR(tblPerformance[[#This Row],[CV (NT$)]]/tblPerformance[[#This Row],[PV (NT$)]],0) -> 8% | K24: =IFERROR(tblPerformance[[#This Row],[EV (NT$)]]-tblPerformance[[#This Row],[PV (NT$)]],0) -> (300) | L24: =IFERROR(tblPerformance[[#This Row],[SV (NT$)]]/tblPerformance[[#This Row],[PV (NT$)]],0) -> -17% | M24: =IFERROR(tblPerformance[[#This Row],[EV (NT$)]]/tblPerformance[[#This Row],[AC (NT$)]],0) -> 1.11 | N24: =IFERROR(tblPerformance[[#This Row],[EV (NT$)]]/tblPerformance[[#This Row],[PV (NT$)]],0) -> 0.83 | O24: =IFERROR(tblPerformance[[#This Row],[EAC]]-tblPerformance[[#This Row],[AC (NT$)]],0) -> 1080 | P24: =IFERROR(tblPerformance[[#This Row],[整體 BAC (NT$)]]/tblPerformance[[#This Row],[CPI]],0) -> 2430 | Q24: =IFERROR(tblPerformance[[#This Row],[VAC (NT$)]]/tblPerformance[[#This Row],[整體 BAC (NT$)]],0) -> 10% | R24: =IFERROR(tblPerformance[[#This Row],[整體 BAC (NT$)]]-tblPerformance[[#This Row],[EAC]],0) -> 270 | S24: =IFERROR((tblPerformance[[#This Row],[SPI]]+tblPerformance[[#This Row],[CPI]])/2,0) -> 0.97 | T24: =LOOKUP(tblPerformance[[#This Row],[平均指數]],tblStatus[下限值],tblStatus[狀態]) -> ORANGE
B25: B.2.3 | C25: 交付項目 3 | D25: 4500 | E25: 3000 | F25: 2550 | G25: 3300 | I25: =tblPerformance[[#This Row],[EV (NT$)]]-tblPerformance[[#This Row],[AC (NT$)]] -> (750) | J25: =IFERROR(tblPerformance[[#This Row],[CV (NT$)]]/tblPerformance[[#This Row],[PV (NT$)]],0) -> -25% | K25: =IFERROR(tblPerformance[[#This Row],[EV (NT$)]]-tblPerformance[[#This Row],[PV (NT$)]],0) -> (450) | L25: =IFERROR(tblPerformance[[#This Row],[SV (NT$)]]/tblPerformance[[#This Row],[PV (NT$)]],0) -> -15% | M25: =IFERROR(tblPerformance[[#This Row],[EV (NT$)]]/tblPerformance[[#This Row],[AC (NT$)]],0) -> 0.77 | N25: =IFERROR(tblPerformance[[#This Row],[EV (NT$)]]/tblPerformance[[#This Row],[PV (NT$)]],0) -> 0.85 | O25: =IFERROR(tblPerformance[[#This Row],[EAC]]-tblPerformance[[#This Row],[AC (NT$)]],0) -> 2524 | P25: =IFERROR(tblPerformance[[#This Row],[整體 BAC (NT$)]]/tblPerformance[[#This Row],[CPI]],0) -> 5824 | Q25: =IFERROR(tblPerformance[[#This Row],[VAC (NT$)]]/tblPerformance[[#This Row],[整體 BAC (NT$)]],0) -> -29% | R25: =IFERROR(tblPerformance[[#This Row],[整體 BAC (NT$)]]-tblPerformance[[#This Row],[EAC]],0) -> (1324) | S25: =IFERROR((tblPerformance[[#This Row],[SPI]]+tblPerformance[[#This Row],[CPI]])/2,0) -> 0.81 | T25: =LOOKUP(tblPerformance[[#This Row],[平均指數]],tblStatus[下限值],tblStatus[狀態]) -> RED

Sheet 定義
B2: 專案績效
B3: 衡量標準定義
B5: 序號 | C5: 衡量標準 | D5: 縮寫 | E5: 描述 | F5: 公式 / 值 | H5: 狀態 | I5: 描述 | J5: 下限值
B6: 1 | C6: 完工預算 | D6: BAC | E6: 基準專案成本 | H6: BLACK | I6: 需要刪除或復原 | J6: 0.00
B7: 2 | C7: 實際成本 | D7: AC | E7: 在特定期間內完成工作的總成本 | H7: RED | I7: 需要立即注意 | J7: 0.65
B8: 3 | C8: 實獲值 | D8: EV | E8: 在特定期間內完成的實際工作量 | H8: ORANGE | I8: 稍微落後進度 / 預算 | J8: 0.85
B9: 4 | C9: 計畫值 | D9: PV | E9: 在特定期間內計畫完成的實際工作量 | H9: GREEN | I9: 符合進度 | J9: 1.00
B10: 5 | C10: 成本偏差 | D10: CV | E10: 在特定期間內超過的成本 | F10: EV-AC
B11: 6 | C11: 成本績效指標 | D11: CPI | E11: 成本效率比 | F11: EV/AC
B12: 7 | C12: 進度偏差 | D12: SV | E12: 在特定期間內的落後時程 | F12: EV-PV
B13: 8 | C13: 時程績效指標 | D13: SPI | E13: 時程效率比 | F13: EV/PV
B14: 9 | C14: 未完工成本估算值 | D14: ETC | E14: 預期額外需要成本 | F14: EAC-AC
B15: 10 | C15: 完工總成本預估值 | D15: EAC | E15: 預期總成本 | F15: BAC/CPI
B16: 11 | C16: 預計完工成本差異 | D16: VAC | E16: 專案結束時預期超過成本 | F16: BAC-EAC
B17: 12 | C17: 狀態 | D17: n/a | E17: CPI 和 SPI 平均值 | F17: (CPI+SPI)/2
B18: 13 | C18: 預期值、實獲值、實際值 | D18: PEA | E18: 預期值、實獲值、實際值以及走勢圖
